[Event "Titled Tuesday Blitz March 07 Early 2023"]
[White "Fabris, Alberto"]
[Black "Jovic, Stanoje"]
[WhiteFideId "801348"]
[BlackFideId "905020"]
[WhiteElo "2153"]
[BlackElo "2236"]
[Result "1-0"]
[Round "08"]
[TimeControl "180+2"]
[Date "2023.03.07"]
[WhiteClock "0:00:04"]
[BlackClock "0:00:06"]

1. d4 {[%clk 0:03:00]}  Nf6 {[%clk 0:02:59]} 2. Nf3 {[%clk 0:03:01]}  e6 {[%clk 0:02:59]} 3. Bf4 {[%clk 0:02:59]}  d5 {[%clk 0:02:57]} 4. e3 {[%clk 0:02:59]}  Bd6 {[%clk 0:02:57]} 5. Bd3 {[%clk 0:02:56]}  b6 {[%clk 0:02:53]} 6. O-O {[%clk 0:02:56]}  O-O {[%clk 0:02:51]} 7. Qe2 {[%clk 0:02:52]}  c5 {[%clk 0:02:48]} 8. c3 {[%clk 0:02:51]}  a5 {[%clk 0:02:44]} 9. Ne5 {[%clk 0:02:49]}  Ba6 {[%clk 0:02:39]} 10. Bxa6 {[%clk 0:02:37]}  Nxa6 {[%clk 0:02:36]} 11. Nd2 {[%clk 0:02:30]}  Bxe5 {[%clk 0:02:30]} 12. Bxe5 {[%clk 0:02:29]}  Nd7 {[%clk 0:02:28]} 13. Bg3 {[%clk 0:02:27]}  Re8 {[%clk 0:02:22]} 14. Rad1 {[%clk 0:02:19]}  c4 {[%clk 0:02:13]} 15. e4 {[%clk 0:02:18]}  dxe4 {[%clk 0:02:06]} 16. Nxc4 {[%clk 0:02:12]}  f5 {[%clk 0:01:58]} 17. f3 {[%clk 0:02:11]}  exf3 {[%clk 0:01:47]} 18. Qxf3 {[%clk 0:02:08]}  Nc7 {[%clk 0:01:36]} 19. Ne5 {[%clk 0:02:02]}  Nxe5 {[%clk 0:01:31]} 20. Bxe5 {[%clk 0:02:01]}  Nd5 {[%clk 0:01:27]} 21. c4 {[%clk 0:01:59]}  Nf6 {[%clk 0:01:23]} 22. Qg3 {[%clk 0:01:50]}  Ra7 {[%clk 0:01:16]} 23. Bxf6 {[%clk 0:01:36]}  Qxf6 {[%clk 0:01:15]} 24. Qd6 {[%clk 0:01:31]}  Rb7 {[%clk 0:00:50]} 25. Qc6 {[%clk 0:01:29]}  Ree7 {[%clk 0:00:41]} 26. Rfe1 {[%clk 0:01:20]}  e5 {[%clk 0:00:38]} 27. Qc8+ {[%clk 0:01:14]}  Kf7 {[%clk 0:00:32]} 28. dxe5 {[%clk 0:01:09]}  Qe6 {[%clk 0:00:29]} 29. Qxe6+ {[%clk 0:01:06]}  Rxe6 {[%clk 0:00:29]} 30. Rd5 {[%clk 0:01:00]}  Rc7 {[%clk 0:00:28]} 31. b3 {[%clk 0:01:00]}  a4 {[%clk 0:00:25]} 32. Kf2 {[%clk 0:00:59]}  axb3 {[%clk 0:00:25]} 33. axb3 {[%clk 0:01:00]}  g5 {[%clk 0:00:22]} 34. Ke3 {[%clk 0:00:56]}  Ra7 {[%clk 0:00:22]} 35. Re2 {[%clk 0:00:53]}  Ra3 {[%clk 0:00:22]} 36. Rb5 {[%clk 0:00:52]}  Kg6 {[%clk 0:00:18]} 37. Kd4 {[%clk 0:00:52]}  f4 {[%clk 0:00:18]} 38. Kd5 {[%clk 0:00:52]}  Kf5 {[%clk 0:00:18]} 39. Kd4 {[%clk 0:00:45]}  Ra1 {[%clk 0:00:18]} 40. Kc3 {[%clk 0:00:37]}  g4 {[%clk 0:00:17]} 41. Rd5 {[%clk 0:00:28]}  f3 {[%clk 0:00:17]} 42. gxf3 {[%clk 0:00:27]}  gxf3 {[%clk 0:00:17]} 43. Rf2 {[%clk 0:00:27]}  Ke4 {[%clk 0:00:17]} 44. Rd3 {[%clk 0:00:16]}  Rc1+ {[%clk 0:00:15]} 45. Kd2 {[%clk 0:00:16]}  Rb1 {[%clk 0:00:13]} 46. Rfxf3 {[%clk 0:00:15]}  Kxe5 {[%clk 0:00:11]} 47. Rfe3+ {[%clk 0:00:14]}  Kf6 {[%clk 0:00:10]} 48. Rxe6+ {[%clk 0:00:14]}  Kxe6 {[%clk 0:00:11]} 49. Rh3 {[%clk 0:00:12]}  Rb2+ {[%clk 0:00:10]} 50. Kc3 {[%clk 0:00:12]}  Ra2 {[%clk 0:00:10]} 51. Rxh7 {[%clk 0:00:12]}  Kd6 {[%clk 0:00:10]} 52. Kb4 {[%clk 0:00:12]}  Kc6 {[%clk 0:00:10]} 53. Rh6+ {[%clk 0:00:13]}  Kb7 {[%clk 0:00:10]} 54. h4 {[%clk 0:00:13]}  Ra1 {[%clk 0:00:10]} 55. h5 {[%clk 0:00:13]}  Ra5 {[%clk 0:00:10]} 56. Rh7+ {[%clk 0:00:13]}  Ka6 {[%clk 0:00:10]} 57. h6 {[%clk 0:00:13]}  Rh5 {[%clk 0:00:10]} 58. Rh8 {[%clk 0:00:13]}  Rh1 {[%clk 0:00:09]} 59. Ka4 {[%clk 0:00:12]}  Ra1+ {[%clk 0:00:08]} 60. Kb4 {[%clk 0:00:12]}  Rh1 {[%clk 0:00:08]} 61. h7 {[%clk 0:00:12]}  Kb7 {[%clk 0:00:08]} 62. Kc3 {[%clk 0:00:11]}  Rh4 {[%clk 0:00:07]} 63. b4 {[%clk 0:00:11]}  Ka7 {[%clk 0:00:07]} 64. Kb3 {[%clk 0:00:11]}  Kb7 {[%clk 0:00:07]} 65. Ka4 {[%clk 0:00:11]}  Ka7 {[%clk 0:00:07]} 66. Kb5 {[%clk 0:00:11]}  Kb7 {[%clk 0:00:05]} 67. c5 {[%clk 0:00:11]}  bxc5 {[%clk 0:00:05]} 68. bxc5 {[%clk 0:00:11]}  Rh5 {[%clk 0:00:05]} 69. Kc4 {[%clk 0:00:10]}  Rh4+ {[%clk 0:00:05]} 70. Kd5 {[%clk 0:00:11]}  Rh5+ {[%clk 0:00:05]} 71. Kd6 {[%clk 0:00:11]}  Rh6+ {[%clk 0:00:06]} 72. Kd7 {[%clk 0:00:11]}  Rh1 {[%clk 0:00:04]} 73. c6+ {[%clk 0:00:11]}  Ka7 {[%clk 0:00:03]} 74. c7 {[%clk 0:00:07]}  Rd1+ {[%clk 0:00:03]} 75. Kc8 {[%clk 0:00:07]}  Rh1 {[%clk 0:00:01]} 76. Kd8 {[%clk 0:00:05]}  Rd1+ {[%clk 0:00:01]} 77. Ke7 {[%clk 0:00:04]}  Re1+ {[%clk 0:00:01]} 78. Kf6 {[%clk 0:00:04]}  Rf1+ {[%clk 0:00:01]} 79. Kg5 {[%clk 0:00:05]}  Rg1+ {[%clk 0:00:02]} 80. Kf4 {[%clk 0:00:05]}  Rh1 {[%clk 0:00:03]} 81. c8=Q {[%clk 0:00:04]}  Rf1+ {[%clk 0:00:03]} 82. Ke3 {[%clk 0:00:04]}  Re1+ {[%clk 0:00:04]} 83. Kf2 {[%clk 0:00:05]}  Re7 {[%clk 0:00:03]} 84. Qa8+ {[%clk 0:00:04]}  Kb6 {[%clk 0:00:04]} 85. Rb8+ {[%clk 0:00:03]}  Rb7 {[%clk 0:00:05]} 86. Qxb7+ {[%clk 0:00:03]}  Kc5 {[%clk 0:00:06]} 87. Qc7+ {[%clk 0:00:03]}  Kd4 {[%clk 0:00:07]} 88. Re8 {[%clk 0:00:03]}  Kd3 {[%clk 0:00:06]} 89. Qd7+ {[%clk 0:00:04]}  Kc4 {[%clk 0:00:06]} 90. Rc8+ {[%clk 0:00:05]}  Kb4 {[%clk 0:00:05]} 91. Qb7+ {[%clk 0:00:06]}  Ka5 {[%clk 0:00:06]} 92. Ra8# {[%clk 0:00:04]} 1-0


[Site "https://www.chess.com"]

[Event "Titled Tuesday Blitz March 07 Early 2023"]
[White "De Souza, Cristiano Gomes"]
[Black "Cella, Glaucio Dalla Cortt"]
[WhiteFideId "2151758"]
[BlackFideId "2119455"]
[WhiteElo "2068"]
[BlackElo "2011"]
[Result "1/2-1/2"]
[Round "08"]
[TimeControl "180+2"]
[Date "2023.03.07"]
[WhiteClock "0:01:13"]
[BlackClock "0:00:13"]

1. d4 {[%clk 0:02:54]}  Nf6 {[%clk 0:01:21]} 2. c4 {[%clk 0:02:53]}  e5 {[%clk 0:01:22]} 3. dxe5 {[%clk 0:02:52]}  Ng4 {[%clk 0:01:22]} 4. Bf4 {[%clk 0:02:51]}  Nc6 {[%clk 0:01:18]} 5. Nf3 {[%clk 0:02:51]}  Bb4+ {[%clk 0:01:18]} 6. Nbd2 {[%clk 0:02:51]}  Qe7 {[%clk 0:01:10]} 7. e3 {[%clk 0:02:47]}  Ngxe5 {[%clk 0:01:08]} 8. Nxe5 {[%clk 0:02:47]}  Nxe5 {[%clk 0:01:06]} 9. Qc2 {[%clk 0:02:46]}  d6 {[%clk 0:01:01]} 10. Be2 {[%clk 0:02:46]}  h6 {[%clk 0:00:54]} 11. O-O {[%clk 0:02:45]}  g5 {[%clk 0:00:54]} 12. Bg3 {[%clk 0:02:44]}  Bxd2 {[%clk 0:00:46]} 13. Qxd2 {[%clk 0:02:43]}  h5 {[%clk 0:00:47]} 14. f4 {[%clk 0:02:37]}  h4 {[%clk 0:00:47]} 15. fxe5 {[%clk 0:02:33]}  hxg3 {[%clk 0:00:44]} 16. exd6 {[%clk 0:02:24]}  gxh2+ {[%clk 0:00:43]} 17. Kh1 {[%clk 0:02:24]}  cxd6 {[%clk 0:00:41]} 18. Rad1 {[%clk 0:02:19]}  Bd7 {[%clk 0:00:31]} 19. Qxd6 {[%clk 0:02:17]}  Qxd6 {[%clk 0:00:32]} 20. Rxd6 {[%clk 0:02:16]}  Ke7 {[%clk 0:00:30]} 21. Rdf6 {[%clk 0:02:13]}  Raf8 {[%clk 0:00:27]} 22. R6f2 {[%clk 0:02:03]}  Be6 {[%clk 0:00:27]} 23. b3 {[%clk 0:02:00]}  Rh6 {[%clk 0:00:27]} 24. Bf3 {[%clk 0:01:57]}  b6 {[%clk 0:00:27]} 25. Bd5 {[%clk 0:01:55]}  f6 {[%clk 0:00:24]} 26. e4 {[%clk 0:01:53]}  a5 {[%clk 0:00:21]} 27. Bxe6 {[%clk 0:01:50]}  Kxe6 {[%clk 0:00:21]} 28. g3 {[%clk 0:01:49]}  Rd8 {[%clk 0:00:17]} 29. Kg2 {[%clk 0:01:47]}  Ke5 {[%clk 0:00:18]} 30. Re2 {[%clk 0:01:42]}  h1=Q+ {[%clk 0:00:18]} 31. Rxh1 {[%clk 0:01:41]}  Rxh1 {[%clk 0:00:19]} 32. Kxh1 {[%clk 0:01:41]}  Rd4 {[%clk 0:00:19]} 33. Kg2 {[%clk 0:01:31]}  Rxe4 {[%clk 0:00:19]} 34. Rd2 {[%clk 0:01:28]}  f5 {[%clk 0:00:19]} 35. Kf2 {[%clk 0:01:27]}  f4 {[%clk 0:00:19]} 36. Rd5+ {[%clk 0:01:26]}  Kf6 {[%clk 0:00:18]} 37. Rb5 {[%clk 0:01:24]}  fxg3+ {[%clk 0:00:17]} 38. Kxg3 {[%clk 0:01:23]}  Re6 {[%clk 0:00:18]} 39. Kg4 {[%clk 0:01:22]}  Re4+ {[%clk 0:00:18]} 40. Kf3 {[%clk 0:01:22]}  Re6 {[%clk 0:00:18]} 41. Kg4 {[%clk 0:01:21]}  Re4+ {[%clk 0:00:18]} 42. Kg3 {[%clk 0:01:22]}  Re6 {[%clk 0:00:16]} 43. c5 {[%clk 0:01:21]}  bxc5 {[%clk 0:00:16]} 44. Rxc5 {[%clk 0:01:21]}  Re5 {[%clk 0:00:16]} 45. Rxe5 {[%clk 0:01:19]}  Kxe5 {[%clk 0:00:16]} 46. Kg4 {[%clk 0:01:20]}  a4 {[%clk 0:00:13]} 47. bxa4 {[%clk 0:01:18]}  Kd4 {[%clk 0:00:13]} 48. Kxg5 {[%clk 0:01:18]}  Kc4 {[%clk 0:00:14]} 49. Kf5 {[%clk 0:01:17]}  Kb4 {[%clk 0:00:14]} 50. Ke5 {[%clk 0:01:16]}  Kxa4 {[%clk 0:00:14]} 51. Kd5 {[%clk 0:01:16]}  Ka3 {[%clk 0:00:14]} 52. Kc4 {[%clk 0:01:13]}  Kxa2 {[%clk 0:00:13]} 1/2-1/2


[Site "https://www.chess.com"]

[Event "Titled Tuesday Blitz March 07 Early 2023"]
[White "Zampronha, Wladimir Camilo"]
[Black "Kuchava, Ana"]
[WhiteFideId "2103087"]
[BlackFideId "13605348"]
[WhiteElo "2176"]
[BlackElo "2001"]
[Result "1-0"]
[Round "08"]
[TimeControl "180+2"]
[Date "2023.03.07"]
[WhiteClock "0:00:08"]
[BlackClock "0:00:03"]

1. e4 {[%clk 0:03:00]}  c5 {[%clk 0:02:58]} 2. Nf3 {[%clk 0:03:01]}  d6 {[%clk 0:02:57]} 3. d4 {[%clk 0:03:01]}  cxd4 {[%clk 0:02:56]} 4. Nxd4 {[%clk 0:03:02]}  Nf6 {[%clk 0:02:54]} 5. Nc3 {[%clk 0:03:03]}  Nc6 {[%clk 0:02:50]} 6. Bg5 {[%clk 0:03:03]}  e6 {[%clk 0:02:50]} 7. Qd2 {[%clk 0:03:04]}  Qb6 {[%clk 0:02:50]} 8. Nb3 {[%clk 0:02:59]}  Be7 {[%clk 0:02:43]} 9. Be3 {[%clk 0:02:56]}  Qd8 {[%clk 0:02:36]} 10. f3 {[%clk 0:02:56]}  O-O {[%clk 0:02:35]} 11. g4 {[%clk 0:02:56]}  a6 {[%clk 0:02:33]} 12. O-O-O {[%clk 0:02:57]}  b5 {[%clk 0:02:31]} 13. h4 {[%clk 0:02:56]}  Bb7 {[%clk 0:02:29]} 14. h5 {[%clk 0:02:56]}  Ne5 {[%clk 0:02:23]} 15. Qf2 {[%clk 0:02:47]}  Nc4 {[%clk 0:02:18]} 16. g5 {[%clk 0:02:27]}  Nxe3 {[%clk 0:01:54]} 17. Qxe3 {[%clk 0:02:28]}  Nd7 {[%clk 0:01:53]} 18. Rg1 {[%clk 0:02:23]}  b4 {[%clk 0:01:48]} 19. Ne2 {[%clk 0:02:15]}  Qb6 {[%clk 0:01:44]} 20. Qxb6 {[%clk 0:02:13]}  Nxb6 {[%clk 0:01:44]} 21. Na5 {[%clk 0:02:11]}  Rab8 {[%clk 0:01:36]} 22. Nd4 {[%clk 0:02:11]}  Rfd8 {[%clk 0:01:00]} 23. Ndc6 {[%clk 0:02:07]}  Bxc6 {[%clk 0:00:51]} 24. Nxc6 {[%clk 0:02:08]}  Re8 {[%clk 0:00:49]} 25. Nxb8 {[%clk 0:02:07]}  Rxb8 {[%clk 0:00:50]} 26. Bxa6 {[%clk 0:02:01]}  Ra8 {[%clk 0:00:49]} 27. Be2 {[%clk 0:02:01]}  Rxa2 {[%clk 0:00:49]} 28. Kb1 {[%clk 0:02:01]}  Ra5 {[%clk 0:00:42]} 29. g6 {[%clk 0:01:59]}  fxg6 {[%clk 0:00:34]} 30. hxg6 {[%clk 0:02:00]}  h6 {[%clk 0:00:35]} 31. Rd4 {[%clk 0:01:53]}  d5 {[%clk 0:00:28]} 32. exd5 {[%clk 0:01:52]}  Bc5 {[%clk 0:00:24]} 33. Rgd1 {[%clk 0:01:27]}  Bxd4 {[%clk 0:00:24]} 34. Rxd4 {[%clk 0:01:28]}  Nxd5 {[%clk 0:00:20]} 35. Bc4 {[%clk 0:01:25]}  Kf8 {[%clk 0:00:20]} 36. Bxd5 {[%clk 0:01:22]}  Rxd5 {[%clk 0:00:20]} 37. Rxb4 {[%clk 0:01:22]}  Rg5 {[%clk 0:00:18]} 38. Re4 {[%clk 0:01:14]}  Ke7 {[%clk 0:00:17]} 39. b4 {[%clk 0:01:12]}  Rxg6 {[%clk 0:00:17]} 40. Kb2 {[%clk 0:01:12]}  h5 {[%clk 0:00:16]} 41. Kb3 {[%clk 0:01:07]}  Rh6 {[%clk 0:00:16]} 42. Rh4 {[%clk 0:01:04]}  g5 {[%clk 0:00:16]} 43. Rh1 {[%clk 0:01:05]}  h4 {[%clk 0:00:16]} 44. c4 {[%clk 0:01:04]}  Kd6 {[%clk 0:00:15]} 45. c5+ {[%clk 0:01:03]}  Kc6 {[%clk 0:00:16]} 46. Kc4 {[%clk 0:01:02]}  h3 {[%clk 0:00:15]} 47. b5+ {[%clk 0:01:03]}  Kc7 {[%clk 0:00:16]} 48. Kd4 {[%clk 0:00:55]}  Rh4+ {[%clk 0:00:10]} 49. Ke5 {[%clk 0:00:55]}  Rc4 {[%clk 0:00:08]} 50. b6+ {[%clk 0:00:18]}  Kc6 {[%clk 0:00:08]} 51. Rxh3 {[%clk 0:00:16]}  Rxc5+ {[%clk 0:00:07]} 52. Kxe6 {[%clk 0:00:16]}  Kxb6 {[%clk 0:00:08]} 53. Kf6 {[%clk 0:00:15]}  Kc7 {[%clk 0:00:08]} 54. Rg3 {[%clk 0:00:15]}  Kd7 {[%clk 0:00:08]} 55. Rxg5 {[%clk 0:00:15]}  Rc6+ {[%clk 0:00:08]} 56. Kf7 {[%clk 0:00:15]}  Rc4 {[%clk 0:00:08]} 57. Rg4 {[%clk 0:00:14]}  Rc3 {[%clk 0:00:07]} 58. f4 {[%clk 0:00:14]}  Kd8 {[%clk 0:00:05]} 59. f5 {[%clk 0:00:14]}  Rf3 {[%clk 0:00:05]} 60. Rg8+ {[%clk 0:00:14]}  Kd7 {[%clk 0:00:05]} 61. f6 {[%clk 0:00:15]}  Rf2 {[%clk 0:00:04]} 62. Rg4 {[%clk 0:00:15]}  Rf1 {[%clk 0:00:04]} 63. Rd4+ {[%clk 0:00:14]}  Kc6 {[%clk 0:00:04]} 64. Kg7 {[%clk 0:00:15]}  Rg1+ {[%clk 0:00:04]} 65. Kf8 {[%clk 0:00:15]}  Kc5 {[%clk 0:00:04]} 66. Rd2 {[%clk 0:00:14]}  Rf1 {[%clk 0:00:03]} 67. f7 {[%clk 0:00:14]}  Kc6 {[%clk 0:00:03]} 68. Rd8 {[%clk 0:00:10]}  Kc7 {[%clk 0:00:03]} 69. Rd4 {[%clk 0:00:11]}  Kc6 {[%clk 0:00:02]} 70. Kg7 {[%clk 0:00:08]}  Rg1+ {[%clk 0:00:03]} 71. Kf6 {[%clk 0:00:08]}  Rf1+ {[%clk 0:00:03]} 72. Ke6 {[%clk 0:00:08]}  Re1+ {[%clk 0:00:03]} 73. Kf5 {[%clk 0:00:08]}  Rf1+ {[%clk 0:00:03]} 74. Rf4 {[%clk 0:00:08]} 1-0


[Site "https://www.chess.com"]

[Event "Titled Tuesday Blitz March 07 Early 2023"]
[White "Sovetbekova, Nurai"]
[Black "Bashirli, Saadat"]
[WhiteFideId "13801910"]
[BlackFideId "13429990"]
[WhiteElo "1857"]
[BlackElo "1408"]
[Result "0-1"]
[Round "08"]
[TimeControl "180+2"]
[Date "2023.03.07"]
[WhiteClock "0:00:37"]
[BlackClock "0:01:10"]

1. d4 {[%clk 0:03:00]}  d5 {[%clk 0:02:52]} 2. c4 {[%clk 0:03:00]}  e6 {[%clk 0:02:49]} 3. Nc3 {[%clk 0:03:00]}  c6 {[%clk 0:02:48]} 4. cxd5 {[%clk 0:02:59]}  exd5 {[%clk 0:02:47]} 5. Nf3 {[%clk 0:02:58]}  Bf5 {[%clk 0:02:45]} 6. Bg5 {[%clk 0:02:57]}  Nf6 {[%clk 0:02:43]} 7. e3 {[%clk 0:02:58]}  Bd6 {[%clk 0:02:42]} 8. Be2 {[%clk 0:02:54]}  O-O {[%clk 0:02:41]} 9. O-O {[%clk 0:02:54]}  h6 {[%clk 0:02:40]} 10. Bh4 {[%clk 0:02:54]}  Nbd7 {[%clk 0:02:40]} 11. Bd3 {[%clk 0:02:51]}  Bxd3 {[%clk 0:02:38]} 12. Qxd3 {[%clk 0:02:52]}  Qc7 {[%clk 0:02:38]} 13. Rab1 {[%clk 0:02:47]}  a5 {[%clk 0:02:35]} 14. Rfc1 {[%clk 0:02:41]}  Qb8 {[%clk 0:02:24]} 15. Na4 {[%clk 0:02:32]}  b5 {[%clk 0:02:21]} 16. Nc5 {[%clk 0:02:27]}  Bxc5 {[%clk 0:02:18]} 17. dxc5 {[%clk 0:02:28]}  Ne5 {[%clk 0:02:15]} 18. Nxe5 {[%clk 0:02:22]}  Qxe5 {[%clk 0:02:16]} 19. Bg3 {[%clk 0:02:16]}  Qe4 {[%clk 0:02:14]} 20. Qe2 {[%clk 0:02:13]}  Rfe8 {[%clk 0:02:07]} 21. Qd1 {[%clk 0:01:58]}  a4 {[%clk 0:01:54]} 22. Rc3 {[%clk 0:01:56]}  Rad8 {[%clk 0:01:47]} 23. Rd3 {[%clk 0:01:55]}  Qc4 {[%clk 0:01:38]} 24. Bd6 {[%clk 0:01:18]}  Qxa2 {[%clk 0:01:35]} 25. Rd4 {[%clk 0:01:08]}  Re4 {[%clk 0:01:25]} 26. Qd3 {[%clk 0:00:54]}  Rxd4 {[%clk 0:01:23]} 27. exd4 {[%clk 0:00:54]}  Ne4 {[%clk 0:01:21]} 28. Be5 {[%clk 0:00:46]}  Re8 {[%clk 0:01:13]} 29. f3 {[%clk 0:00:42]}  Nxc5 {[%clk 0:01:11]} 30. Qc3 {[%clk 0:00:37]}  Qxb1+ {[%clk 0:01:10]} 0-1


[Site "https://www.chess.com"]

[Event "Titled Tuesday Blitz March 07 Early 2023"]
[White "Tsatsalashvili, Keti"]
[Black "Sailer, Mike"]
[WhiteFideId "13603434"]
[BlackFideId "2012901"]
[WhiteElo "2220"]
[BlackElo "2109"]
[Result "1-0"]
[Round "08"]
[TimeControl "180+2"]
[Date "2023.03.07"]
[WhiteClock "0:01:02"]
[BlackClock "0:00:33"]

1. d4 {[%clk 0:03:00]}  d5 {[%clk 0:02:59]} 2. Nf3 {[%clk 0:02:56]}  Bf5 {[%clk 0:02:59]} 3. c4 {[%clk 0:02:54]}  e6 {[%clk 0:03:00]} 4. Nc3 {[%clk 0:02:53]}  Nc6 {[%clk 0:03:00]} 5. cxd5 {[%clk 0:02:52]}  exd5 {[%clk 0:03:01]} 6. a3 {[%clk 0:02:49]}  Nf6 {[%clk 0:03:01]} 7. Bf4 {[%clk 0:02:46]}  a6 {[%clk 0:02:59]} 8. e3 {[%clk 0:02:46]}  Be7 {[%clk 0:02:59]} 9. Bd3 {[%clk 0:02:45]}  Bxd3 {[%clk 0:02:59]} 10. Qxd3 {[%clk 0:02:46]}  O-O {[%clk 0:03:00]} 11. O-O {[%clk 0:02:47]}  Re8 {[%clk 0:03:00]} 12. Rac1 {[%clk 0:02:47]}  Nh5 {[%clk 0:03:00]} 13. Be5 {[%clk 0:02:37]}  f6 {[%clk 0:02:48]} 14. Bg3 {[%clk 0:02:09]}  Nxg3 {[%clk 0:02:48]} 15. hxg3 {[%clk 0:02:08]}  Na5 {[%clk 0:02:37]} 16. b4 {[%clk 0:02:05]}  Nc4 {[%clk 0:02:36]} 17. Nxd5 {[%clk 0:02:05]}  Qxd5 {[%clk 0:02:24]} 18. Qxc4 {[%clk 0:02:05]}  Qxc4 {[%clk 0:02:24]} 19. Rxc4 {[%clk 0:02:06]}  c6 {[%clk 0:02:25]} 20. Rb1 {[%clk 0:02:00]}  Kf7 {[%clk 0:02:19]} 21. Kf1 {[%clk 0:02:00]}  Ke6 {[%clk 0:02:19]} 22. Ke2 {[%clk 0:02:00]}  g5 {[%clk 0:02:15]} 23. Nd2 {[%clk 0:02:00]}  h5 {[%clk 0:02:14]} 24. Nb3 {[%clk 0:01:59]}  h4 {[%clk 0:02:09]} 25. g4 {[%clk 0:01:56]}  f5 {[%clk 0:01:59]} 26. gxf5+ {[%clk 0:01:54]}  Kxf5 {[%clk 0:02:00]} 27. f3 {[%clk 0:01:44]}  Bd6 {[%clk 0:01:36]} 28. Kd3 {[%clk 0:01:38]}  Re7 {[%clk 0:01:31]} 29. Nc5 {[%clk 0:01:35]}  Rg8 {[%clk 0:01:19]} 30. Ne4 {[%clk 0:01:24]}  Bb8 {[%clk 0:01:08]} 31. Rc5+ {[%clk 0:01:24]}  Ke6 {[%clk 0:01:02]} 32. Rxg5 {[%clk 0:01:20]}  Rxg5 {[%clk 0:01:01]} 33. Nxg5+ {[%clk 0:01:21]}  Kf5 {[%clk 0:01:02]} 34. Ne4 {[%clk 0:01:16]}  Rg7 {[%clk 0:01:02]} 35. Rb2 {[%clk 0:01:16]}  Bc7 {[%clk 0:00:43]} 36. a4 {[%clk 0:01:16]}  b5 {[%clk 0:00:35]} 37. a5 {[%clk 0:01:15]}  Bd8 {[%clk 0:00:34]} 38. Nc5 {[%clk 0:01:03]}  Ra7 {[%clk 0:00:33]} 39. e4+ {[%clk 0:01:02]}  Kf4 {[%clk 0:00:33]} 40. Ne6+ {[%clk 0:01:02]}  Kg3 {[%clk 0:00:33]} 41. Nxd8 {[%clk 0:01:02]} 1-0


[Site "https://www.chess.com"]

[Event "Titled Tuesday Blitz March 07 Early 2023"]
[White "Lauridsen, Jesper Morch"]
[Black "Aanan, Shafiuddin"]
[WhiteFideId "1401890"]
[BlackFideId "3242633"]
[WhiteElo "2291"]
[BlackElo "1648"]
[Result "1-0"]
[Round "08"]
[TimeControl "180+2"]
[Date "2023.03.07"]
[WhiteClock "0:00:02"]
[BlackClock "0:00:02"]

1. e4 {[%clk 0:02:39]}  c5 {[%clk 0:02:57]} 2. Nf3 {[%clk 0:02:39]}  d6 {[%clk 0:02:57]} 3. d4 {[%clk 0:02:40]}  cxd4 {[%clk 0:02:56]} 4. Nxd4 {[%clk 0:02:40]}  Nf6 {[%clk 0:02:56]} 5. Nc3 {[%clk 0:02:41]}  a6 {[%clk 0:02:56]} 6. g3 {[%clk 0:02:41]}  e5 {[%clk 0:02:55]} 7. Nde2 {[%clk 0:02:40]}  Be6 {[%clk 0:02:52]} 8. Bg2 {[%clk 0:02:38]}  Nbd7 {[%clk 0:02:51]} 9. O-O {[%clk 0:02:36]}  b5 {[%clk 0:02:51]} 10. h3 {[%clk 0:02:34]}  h5 {[%clk 0:02:35]} 11. Bg5 {[%clk 0:02:31]}  Be7 {[%clk 0:02:35]} 12. f4 {[%clk 0:02:29]}  O-O {[%clk 0:02:27]} 13. b3 {[%clk 0:02:28]}  Nb6 {[%clk 0:02:02]} 14. f5 {[%clk 0:02:26]}  Bd7 {[%clk 0:02:02]} 15. Nc1 {[%clk 0:02:09]}  Bc6 {[%clk 0:01:57]} 16. Bxf6 {[%clk 0:02:06]}  Bxf6 {[%clk 0:01:57]} 17. Qxh5 {[%clk 0:02:06]}  d5 {[%clk 0:01:49]} 18. exd5 {[%clk 0:02:01]}  Nxd5 {[%clk 0:01:50]} 19. Ne4 {[%clk 0:01:37]}  Ne3 {[%clk 0:01:36]} 20. Nxf6+ {[%clk 0:01:20]}  Qxf6 {[%clk 0:01:36]} 21. Bxc6 {[%clk 0:01:17]}  Qxc6 {[%clk 0:01:36]} 22. Rf2 {[%clk 0:01:07]}  Qc3 {[%clk 0:01:33]} 23. Qf3 {[%clk 0:00:39]}  Qxa1 {[%clk 0:01:15]} 24. Qxe3 {[%clk 0:00:38]}  Rfd8 {[%clk 0:01:05]} 25. f6 {[%clk 0:00:29]}  Rd1+ {[%clk 0:01:00]} 26. Rf1 {[%clk 0:00:29]}  Qd4 {[%clk 0:00:47]} 27. Qxd4 {[%clk 0:00:25]}  Rxd4 {[%clk 0:00:44]} 28. Nd3 {[%clk 0:00:21]}  e4 {[%clk 0:00:28]} 29. Ne5 {[%clk 0:00:21]}  Rd5 {[%clk 0:00:24]} 30. Ng4 {[%clk 0:00:18]}  g6 {[%clk 0:00:23]} 31. Re1 {[%clk 0:00:15]}  Rd4 {[%clk 0:00:20]} 32. Kf2 {[%clk 0:00:14]}  Rc8 {[%clk 0:00:19]} 33. Ke3 {[%clk 0:00:14]}  Rd6 {[%clk 0:00:17]} 34. Kf4 {[%clk 0:00:11]}  Rb8 {[%clk 0:00:14]} 35. Rxe4 {[%clk 0:00:10]}  Rc6 {[%clk 0:00:12]} 36. Re7 {[%clk 0:00:09]}  Rxc2 {[%clk 0:00:11]} 37. Nh6+ {[%clk 0:00:09]}  Kf8 {[%clk 0:00:09]} 38. Rxf7+ {[%clk 0:00:08]}  Ke8 {[%clk 0:00:09]} 39. Rh7 {[%clk 0:00:06]}  Rd8 {[%clk 0:00:07]} 40. Rh8+ {[%clk 0:00:03]}  Kd7 {[%clk 0:00:07]} 41. Rxd8+ {[%clk 0:00:03]}  Kxd8 {[%clk 0:00:07]} 42. Ng8 {[%clk 0:00:03]}  Ke8 {[%clk 0:00:05]} 43. Kg5 {[%clk 0:00:03]}  Rg2 {[%clk 0:00:02]} 44. g4 {[%clk 0:00:02]} 1-0


[Site "https://www.chess.com"]

[Event "Titled Tuesday Blitz March 07 Early 2023"]
[White "Bongo Akanga Ndjila, Barthelemy"]
[Black "Liu, Kelsey"]
[WhiteFideId "10609431"]
[BlackFideId "30944481"]
[WhiteElo "1768"]
[BlackElo "2289"]
[Result "1/2-1/2"]
[Round "08"]
[TimeControl "180+2"]
[Date "2023.03.07"]
[WhiteClock "0:01:47"]
[BlackClock "0:00:43"]

1. d4 {[%clk 0:02:56]}  Nf6 {[%clk 0:02:59]} 2. c4 {[%clk 0:02:55]}  e6 {[%clk 0:02:59]} 3. Nf3 {[%clk 0:02:55]}  b6 {[%clk 0:02:59]} 4. a3 {[%clk 0:02:54]}  Bb7 {[%clk 0:02:57]} 5. Nc3 {[%clk 0:02:54]}  d5 {[%clk 0:02:56]} 6. cxd5 {[%clk 0:02:54]}  Nxd5 {[%clk 0:02:56]} 7. Qc2 {[%clk 0:02:50]}  c5 {[%clk 0:02:51]} 8. e4 {[%clk 0:02:49]}  Nxc3 {[%clk 0:02:48]} 9. bxc3 {[%clk 0:02:49]}  Nd7 {[%clk 0:02:47]} 10. Bd3 {[%clk 0:02:45]}  cxd4 {[%clk 0:02:41]} 11. cxd4 {[%clk 0:02:44]}  Rc8 {[%clk 0:02:40]} 12. Qe2 {[%clk 0:02:44]}  Bd6 {[%clk 0:02:00]} 13. O-O {[%clk 0:02:43]}  e5 {[%clk 0:01:59]} 14. Bg5 {[%clk 0:02:38]}  f6 {[%clk 0:01:58]} 15. Bd2 {[%clk 0:02:28]}  O-O {[%clk 0:01:52]} 16. d5 {[%clk 0:02:23]}  Nc5 {[%clk 0:01:49]} 17. Nh4 {[%clk 0:02:13]}  Nxd3 {[%clk 0:01:44]} 18. Qxd3 {[%clk 0:02:13]}  g6 {[%clk 0:01:28]} 19. Bh6 {[%clk 0:02:11]}  Rf7 {[%clk 0:01:28]} 20. Rac1 {[%clk 0:02:06]}  f5 {[%clk 0:01:20]} 21. exf5 {[%clk 0:02:03]}  Qxh4 {[%clk 0:01:17]} 22. fxg6 {[%clk 0:01:59]}  Qxh6 {[%clk 0:00:46]} 23. gxf7+ {[%clk 0:01:58]}  Kxf7 {[%clk 0:00:46]} 24. Qf5+ {[%clk 0:01:50]}  Qf6 {[%clk 0:00:46]} 25. Qxh7+ {[%clk 0:01:49]}  Qg7 {[%clk 0:00:43]} 26. Qf5+ {[%clk 0:01:49]}  Qf6 {[%clk 0:00:43]} 27. Qh7+ {[%clk 0:01:50]}  Qg7 {[%clk 0:00:43]} 28. Qf5+ {[%clk 0:01:47]}  Qf6 {[%clk 0:00:43]} 29. Qh7+ {[%clk 0:01:47]} 1/2-1/2


[Site "https://www.chess.com"]